bitfinex-derivatives/quotes_BTCF0:USTF0_20250902
["timestamp","ask_amount","ask_price","bid_price","bid_amount"]
[1756787747457,0.5954358,110300.0,110290.0,0.3168758]
[1756787748154,0.5954358,110300.0,110290.0,0.3178758]
[1756787748347,0.2346358,110300.0,110290.0,0.3178758]
[1756787749160,0.2347958,110300.0,110290.0,0.3177558]
[1756787749454,0.5955958,110300.0,110290.0,0.3177558]
[1756787749658,0.5955958,110300.0,110290.0,0.3187558]
[1756787751060,0.5955958,110300.0,110290.0,0.08424]
[1756787751257,0.5955958,110300.0,110290.0,0.3187558]
[1756787752260,0.2347958,110300.0,110290.0,0.3187558]
[1756787752658,0.2345758,110300.0,110290.0,0.3187558]
[1756787752861,0.2349858,110300.0,110290.0,0.3187558]
[1756787753563,0.2349858,110300.0,110290.0,0.08424]
[1756787753863,0.9557858,110300.0,110290.0,0.08424]
[1756787754161,0.6157858,110300.0,110290.0,0.08424]
[1756787754759,0.9557858,110300.0,110290.0,0.08424]
[1756787755062,0.6157858,110300.0,110290.0,0.08424]
[1756787755664,0.8503016,110300.0,110290.0,0.08424]
[1756787756052,1.1903016,110300.0,110290.0,0.08424]
[1756787756259,1.1903016,110300.0,110290.0,0.002]
[1756787756757,1.1903016,110300.0,110290.0,0.001]
[1756787756961,1.1903016,110300.0,110290.0,0.02373]
[1756787757264,1.1903016,110300.0,110290.0,0.001]
[1756787757564,1.1903016,110300.0,110290.0,0.02373]
[1756787757866,1.1903016,110300.0,110290.0,0.001]
[1756787758262,1.4403016,110300.0,110290.0,0.001]
[1756787758565,0.00066,110290.0,110280.0,0.44316]
[1756787758766,0.2551758,110290.0,110280.0,0.44316]
[1756787759459,0.31066,110290.0,110280.0,0.44316]
[1756787759762,0.2350158,110290.0,110280.0,0.74375156]
[1756787760163,1.0796916,110290.0,110280.0,0.002]
[1756787760464,1.0796916,110290.0,110280.0,0.04805]
[1756787760465,1.4404916,110290.0,110280.0,0.04805]
[1756787764568,1.4404916,110290.0,110280.0,0.08436]
[1756787764569,1.77334,110290.0,110280.0,0.08436]
[1756787764770,1.7578558,110290.0,110280.0,0.08436]
[1756787765364,1.9923716,110290.0,110280.0,0.08436]
[1756787765559,1.9923716,110290.0,110280.0,0.04805]
[1756787765768,1.9923716,110290.0,110280.0,0.002]
[1756787765966,1.9923716,110290.0,110280.0,0.05059]
[1756787766369,1.9923716,110290.0,110280.0,0.08684]
[1756787766576,2.0323716,110290.0,110280.0,0.08684]
[1756787766767,2.0323716,110290.0,110280.0,0.002]
[1756787767266,2.0323716,110290.0,110280.0,0.02646]
[1756787768773,2.0323716,110290.0,110280.0,0.05059]
[1756787768965,2.0323716,110290.0,110280.0,0.08684]
[1756787769165,2.0323716,110290.0,110280.0,0.05059]
[1756787770074,2.0323716,110290.0,110280.0,0.08684]
[1756787770275,2.0323716,110290.0,110280.0,0.002]
[1756787770773,2.0323716,110290.0,110280.0,0.05059]
[1756787771274,2.0323716,110290.0,110280.0,0.02646]
[1756787771570,2.5167274,110290.0,110260.0,0.06507576]
[1756787771774,0.8298316,110270.0,110260.0,0.04859]
[1756787772070,2.0319116,110270.0,110260.0,0.02446]
[1756787772274,2.0319116,110270.0,110250.0,0.13566045]
[1756787772275,2.0319116,110270.0,110250.0,0.18425045]
[1756787772576,0.4690316,110260.0,110250.0,0.18425045]
[1756787772775,0.7990316,110260.0,110250.0,0.18425045]
[1756787773275,0.6045158,110260.0,110250.0,0.18425045]
[1756787773470,0.8390316,110260.0,110250.0,0.18425045]
[1756787773974,0.8390316,110260.0,110250.0,0.12417469]
[1756787774676,0.8390316,110260.0,110250.0,0.12817469]
[1756787775178,0.8390316,110260.0,110250.0,0.12717469]
[1756787775579,0.84828639,110260.0,110250.0,0.12717469]
[1756787776681,0.84828639,110260.0,110250.0,0.11282469]
[1756787777182,1.20908639,110260.0,110250.0,0.11282469]
[1756787777582,0.85908639,110260.0,110250.0,0.11282469]
[1756787777776,1.19908639,110260.0,110250.0,0.11282469]
[1756787778281,1.19908639,110260.0,110250.0,0.11182469]
[1756787778984,1.20008639,110260.0,110250.0,0.10682469]
[1756787779284,1.20008639,110260.0,110250.0,0.10674469]
[1756787779678,0.37105479,110260.0,110250.0,0.12100469]
[1756787779885,0.8308316,110260.0,110250.0,0.12100469]
[1756787780080,0.2355158,110260.0,110250.0,0.35552049]
[1756787780386,0.2355158,110260.0,110250.0,0.96632049]
[1756787780686,0.2355158,110260.0,110250.0,0.73180469]
[1756787780987,0.2355158,110260.0,110250.0,0.96632049]
[1756787781885,0.4700316,110260.0,110250.0,0.73180469]
[1756787782587,0.8000316,110260.0,110250.0,0.73180469]
[1756787782880,0.8000316,110260.0,110250.0,0.71643]
[1756787783482,0.001,110260.0,110250.0,0.71643]
[1756787783680,0.8100316,110260.0,110250.0,0.71643]
[1756787784777,0.4700316,110260.0,110250.0,0.71643]
[1756787784979,0.7900316,110260.0,110250.0,0.71643]
[1756787787691,0.7900316,110260.0,110250.0,0.41592]
[1756787788085,0.7900316,110260.0,110250.0,0.39179]
[1756787788480,0.7900316,110260.0,110250.0,0.41592]
[1756787788678,1.1508316,110260.0,110250.0,0.05512]
[1756787792082,1.4008316,110260.0,110250.0,0.00653]
[1756787793187,1.6353474,110260.0,110250.0,0.00653]
[1756787794691,1.4008316,110260.0,110250.0,0.00653]
[1756787795491,1.4008316,110260.0,110250.0,0.03099]
[1756787795698,1.4008316,110260.0,110250.0,0.0549]
[1756787796298,1.4008316,110260.0,110250.0,0.00653]
[1756787796599,1.6353474,110260.0,110250.0,0.00653]
[1756787799499,1.40142316,110260.0,110250.0,0.00653]
[1756787802592,1.40142316,110260.0,110250.0,0.03082]
[1756787802797,1.16661158,110260.0,110250.0,0.03082]
[1756787803994,2.00377158,110260.0,110250.0,0.03082]
[1756787807594,2.00377158,110260.0,110250.0,0.05473]
[1756787807800,2.00305158,110260.0,110250.0,0.03082]
[1756787808489,2.00305158,110260.0,110250.0,0.05473]
[1756787810905,2.00277158,110260.0,110250.0,0.05473]
[1756787811608,1.76796,110260.0,110250.0,0.10443]
[1756787811904,2.00277158,110260.0,110250.0,0.05473]
[1756787812495,2.00277158,110260.0,110250.0,0.08974]
[1756787812700,2.00277158,110260.0,110250.0,0.05473]
[1756787813206,2.00277158,110260.0,110250.0,0.08974]
[1756787813507,2.00277158,110260.0,110250.0,0.05473]
[1756787814011,1.43365158,110260.0,110250.0,0.35443]
[1756787814395,1.78365158,110260.0,110250.0,0.35443]
[1756787814597,0.001,110260.0,110250.0,1.01522485]
[1756787815610,0.001,110260.0,110250.0,0.95004158]
[1756787815806,0.001,110260.0,110250.0,1.04074058]
[1756787816302,0.001,110260.0,110250.0,1.03152067]
[1756787816499,0.001,110260.0,110250.0,0.79670909]
[1756787816700,0.001,110260.0,110250.0,1.03152067]
[1756787816895,0.001,110260.0,110250.0,0.79670909]
[1756787819210,0.001,110260.0,110250.0,0.54670909]
[1756787820412,0.021,110260.0,110250.0,0.54670909]
[1756787820601,0.001,110260.0,110250.0,0.54670909]
[1756787821006,0.021,110260.0,110250.0,0.54670909]
[1756787821207,0.001,110260.0,110250.0,0.54670909]
[1756787821414,0.351,110260.0,110250.0,0.46523]
[1756787821714,0.021,110260.0,110250.0,0.46523]
[1756787824912,0.021,110260.0,110250.0,0.54670909]
[1756787826415,0.021,110260.0,110250.0,0.46523]
[1756787827211,0.021,110260.0,110250.0,0.54670909]
[1756787827816,0.021,110260.0,110250.0,0.46523]
[1756787828120,0.021,110260.0,110250.0,0.54670909]
[1756787828420,0.021,110260.0,110250.0,0.46523]
[1756787828622,0.021,110260.0,110250.0,1.30119]
[1756787830421,0.021,110260.0,110250.0,1.36634011]
[1756787830816,0.001,110260.0,110250.0,1.60115169]
[1756787831217,0.001,110260.0,110250.0,1.36634011]
[1756787831519,0.001,110260.0,110250.0,1.60115169]
[1756787837120,0.001,110260.0,110250.0,0.76519169]
[1756787837317,0.001,110260.0,110250.0,1.60055169]
[1756787837917,0.001,110260.0,110250.0,0.76519169]
[1756787838128,0.001,110260.0,110250.0,1.60043169]
[1756787839528,0.001,110260.0,110250.0,1.53528158]
[1756787842030,0.001,110260.0,110250.0,1.61676067]
[1756787844035,0.001,110260.0,110250.0,1.38142909]
[1756787846233,0.001,110260.0,110250.0,1.61624067]
[1756787850236,0.001,110260.0,110250.0,1.53476158]
[1756787851830,0.001,110260.0,110250.0,1.29995]
[1756787852030,0.001,110260.0,110250.0,1.53476158]
[1756787853939,0.001,110260.0,110250.0,1.60009124]
[1756787858840,0.001,110260.0,110250.0,1.36527966]
[1756787859047,0.001,110260.0,110250.0,1.60009124]
[1756787861551,0.001,110260.0,110250.0,1.59995121]
[1756787862250,0.001,110260.0,110250.0,0.76523121]
[1756787862550,0.001,110260.0,110250.0,1.59819121]
[1756787864251,0.001,110260.0,110250.0,1.53286155]
[1756787864951,0.001,110260.0,110250.0,1.53250155]
[1756787865340,0.23567155,110260.0,110250.0,1.53250155]
[1756787865638,0.001,110260.0,110250.0,1.29783]
[1756787865840,0.001,110260.0,110250.0,1.53250155]
[1756787869446,0.23567155,110260.0,110250.0,1.53250155]
[1756787869757,0.23567155,110260.0,110250.0,1.29783]
[1756787869960,0.23567155,110260.0,110250.0,1.53250155]
[1756787870358,0.001,110260.0,110250.0,1.53250155]
[1756787873565,0.001,110260.0,110250.0,0.69990155]
[1756787873767,0.001,110260.0,110250.0,1.53230155]
[1756787875867,0.001,110260.0,110250.0,1.59763517]
[1756787877157,0.001,110260.0,110250.0,0.68202517]
[1756787877362,1.3911431,110260.0,110250.0,0.1038]
[1756787878564,0.9218,110260.0,110250.0,0.1038]
[1756787878764,1.3911431,110260.0,110250.0,0.1038]
[1756787879175,1.1411431,110260.0,110250.0,0.1038]
[1756787880768,1.98661465,110260.0,110250.0,0.00653]
[1756787880967,2.00679823,110260.0,110250.0,0.00653]
[1756787881168,2.00679823,110260.0,110250.0,0.03061]
[1756787881364,2.00679823,110260.0,110250.0,0.05511]
[1756787881563,2.83863823,110260.0,110250.0,0.05511]
[1756787881968,2.83863823,110260.0,110250.0,0.08911]
[1756787882471,1.77212668,110260.0,110250.0,0.08911]
[1756787882672,2.00679823,110260.0,110250.0,0.08911]
[1756787884174,1.98661465,110260.0,110250.0,0.05511]
[1756787884572,2.00676326,110260.0,110250.0,0.05511]
[1756787885173,1.98661465,110260.0,110250.0,0.05511]
[1756787885567,1.98661465,110260.0,110250.0,0.08888]
[1756787885873,1.98661465,110260.0,110250.0,0.05511]
[1756787887878,1.98661465,110260.0,110250.0,0.00653]
[1756787888279,1.98661465,110260.0,110250.0,0.02928]
[1756787889082,1.98661465,110260.0,110250.0,0.05299]
[1756787893486,1.98661465,110260.0,110250.0,0.08676]
[1756787893686,1.98661465,110260.0,110250.0,0.05299]
[1756787896892,1.98661465,110260.0,110250.0,0.02928]
[1756787897590,1.98661465,110260.0,110250.0,0.05299]
[1756787901392,1.98661465,110260.0,110250.0,0.08676]
[1756787901794,1.98661465,110260.0,110250.0,0.05299]
[1756787901990,1.98661465,110260.0,110250.0,0.00653]
[1756787902201,1.98661465,110260.0,110250.0,0.02928]
[1756787902798,1.98661465,110260.0,110250.0,0.05299]
[1756787903295,1.2826,110260.0,110250.0,0.08676]
[1756787903497,1.98661465,110260.0,110250.0,0.05299]
[1756787904897,1.98661465,110260.0,110250.0,0.35166]
[1756787904898,2.0224231,110260.0,110250.0,0.35166]
[1756787905093,2.4024231,110260.0,110250.0,0.35166]
[1756787905594,2.0224231,110260.0,110250.0,0.35166]
[1756787905892,1.3008231,110260.0,110250.0,0.35166]
[1756787906092,1.3208231,110260.0,110250.0,0.35166]
[1756787906700,1.3008231,110260.0,110250.0,0.35166]
[1756787906890,1.6508231,110260.0,110250.0,0.35166]
[1756787908005,2.0116231,110260.0,110250.0,0.35166]
[1756787910000,1.6816231,110260.0,110250.0,0.35166]
[1756787914586,1.6616231,110260.0,110250.0,0.35166]
[1756787915497,1.6816231,110260.0,110250.0,0.35166]
[1756787918902,1.3208231,110260.0,110250.0,0.35166]
[1756787919196,1.6816231,110260.0,110250.0,0.35166]
[1756787921701,1.80702912,110260.0,110250.0,0.30299]
[1756787921901,1.42702912,110260.0,110250.0,0.30299]
[1756787922101,1.76702912,110260.0,110250.0,0.34007]
[1756787922603,1.42702912,110260.0,110250.0,0.34007]
[1756787922902,1.74702912,110260.0,110250.0,0.34007]
[1756787923400,1.42702912,110260.0,110250.0,0.34007]
[1756787923593,1.77702912,110260.0,110250.0,0.34007]
[1756787930409,1.84940912,110260.0,110250.0,0.30907]
[1756787930609,1.84940912,110260.0,110250.0,0.33331]
[1756787933418,1.86975249,110260.0,110250.0,0.33331]
[1756787938420,1.30500337,110260.0,110250.0,0.33331]
[1756787938715,1.85975249,110260.0,110250.0,0.33331]
[1756787939120,1.53975249,110260.0,110250.0,0.33331]
[1756787939306,1.87975249,110260.0,110250.0,0.08331]
[1756787939918,1.51895249,110260.0,110250.0,0.08331]
[1756787940221,1.28500337,110260.0,110250.0,0.08331]
[1756787940516,1.89975249,110260.0,110250.0,0.08331]
[1756787940713,1.66500337,110260.0,110250.0,0.08331]
[1756787940920,1.85975249,110260.0,110250.0,0.08331]
[1756787941617,1.83940912,110260.0,110250.0,0.08331]
[1756787942318,1.26466,110260.0,110250.0,0.08331]
[1756787942517,1.86940912,110260.0,110250.0,0.08331]
[1756787944723,1.86940912,110260.0,110250.0,0.04623]
[1756787946325,1.86940912,110260.0,110250.0,0.0816]
[1756787946523,1.86940912,110260.0,110250.0,0.02424]
[1756787947125,1.26466,110260.0,110250.0,0.04851]
[1756787947328,1.87940912,110260.0,110250.0,0.04851]
[1756787948425,1.87940912,110260.0,110250.0,0.02343]
[1756787948727,1.87940912,110260.0,110250.0,0.0477]
[1756787952626,1.26466,110260.0,110250.0,0.0477]
[1756787952830,1.80940912,110260.0,110250.0,0.08307]
[1756787953128,1.80940912,110260.0,110250.0,0.0477]
[1756787957429,1.26466,110260.0,110250.0,0.08307]
[1756787957636,1.49940912,110260.0,110250.0,0.08307]
[1756787958028,1.49940912,110260.0,110250.0,0.0477]
[1756787958333,1.49940912,110260.0,110250.0,0.02343]
[1756787958634,0.07218,110250.0,110240.0,0.52974215]
[1756787958830,0.26021912,110260.0,110240.0,0.72912127]
[1756787959033,0.30792912,110260.0,110250.0,0.50921025]
[1756787960633,0.30692912,110260.0,110250.0,0.51021025]
[1756787960822,0.07218,110260.0,110250.0,0.52394025]
[1756787961028,0.04771,110270.0,110260.0,0.08307]
[1756787961230,0.02469,110270.0,110260.0,0.92861912]
[1756787961528,0.14541901,110280.0,110270.0,0.08307]
[1756787961727,0.14541901,110280.0,110270.0,1.27407]
[1756787961728,0.07218,110280.0,110270.0,1.27407]
[1756787961928,0.07218,110280.0,110270.0,1.57406778]
[1756787962137,0.07218,110280.0,110270.0,1.50881912]
[1756787962335,0.07218,110280.0,110270.0,1.27407]
[1756787963041,0.07318,110280.0,110270.0,1.27407]
[1756787963741,0.07318,110280.0,110270.0,1.28322743]
[1756787964038,0.07518,110280.0,110270.0,1.28322743]
[1756787964238,0.07418,110280.0,110270.0,1.28322743]
[1756787964440,0.07318,110280.0,110270.0,1.28322743]
[1756787966237,0.02569,110280.0,110270.0,1.28322743]
[1756787966632,0.05016,110280.0,110270.0,1.28322743]
[1756787967141,0.05016,110280.0,110270.0,1.27407]
[1756787967741,0.04916,110280.0,110270.0,1.27407]
[1756787967939,0.04916,110280.0,110270.0,1.27507]
[1756787968846,0.02469,110280.0,110270.0,1.27495]
[1756787969046,0.75902284,110290.0,110280.0,0.03537]
[1756787969343,0.75902284,110290.0,110280.0,0.44387]
[1756787969344,0.06581493,110290.0,110280.0,0.44387]
[1756787969540,0.01810493,110290.0,110280.0,0.44387]
[1756787969740,0.01810493,110290.0,110280.0,1.01929782]
[1756787970346,0.01910493,110290.0,110280.0,1.01929782]
[1756787971344,0.001,110290.0,110280.0,1.01929782]
[1756787971538,0.001,110290.0,110280.0,1.08454648]
[1756787971844,0.02447,110310.0,110280.0,1.08454648]
[1756787972043,0.07218,110310.0,110300.0,0.4576]
[1756787972543,0.30692912,110310.0,110300.0,0.4576]
[1756787973046,0.37812496,110310.0,110300.0,0.4576]
[1756787974242,0.07218,110310.0,110300.0,0.4576]
[1756787974443,0.07318,110310.0,110300.0,0.4576]
[1756787976350,0.02569,110310.0,110300.0,0.4576]
[1756787976547,0.0731,110310.0,110300.0,0.4576]
[1756787977065,0.04863,110310.0,110300.0,0.4576]
[1756787978657,0.02569,110310.0,110300.0,0.4576]
[1756787978858,0.001,110310.0,110300.0,0.4576]
[1756787979257,0.001,110310.0,110300.0,0.69234912]
[1756787979652,0.001,110310.0,110300.0,0.4576]
[1756787979853,0.02545,110310.0,110300.0,0.4576]
[1756787980255,0.04839,110310.0,110300.0,0.4576]
[1756787980855,0.07286,110310.0,110300.0,0.4576]
[1756787981054,0.07286,110310.0,110300.0,1.39736]
[1756787981760,0.30760912,110310.0,110300.0,1.39736]
[1756787982558,0.30760912,110310.0,110300.0,0.5676]
[1756787982760,0.30760912,110310.0,110300.0,1.39732]
[1756787982956,0.30760912,110310.0,110300.0,0.5676]
[1756787983260,0.30760912,110310.0,110300.0,1.28732]
[1756787983454,0.30735194,110310.0,110300.0,1.52181194]
[1756787983655,0.30735194,110310.0,110300.0,1.63181194]
[1756787984158,0.30735194,110310.0,110300.0,0.80209194]
[1756787984361,0.30735194,110310.0,110300.0,1.63181194]
[1756787987262,0.28288194,110310.0,110300.0,1.63181194]
[1756787988163,0.30735194,110310.0,110300.0,1.52181194]
[1756787989464,0.30735194,110310.0,110300.0,0.4576]
[1756787989658,0.91184388,110310.0,110300.0,0.4085]
[1756787989853,0.91184388,110310.0,110300.0,0.02343]
[1756787990058,1.27264388,110310.0,110300.0,0.04802]
[1756787990961,1.27264388,110310.0,110300.0,0.08484]
[1756787992161,1.73266582,110310.0,110290.0,0.39762]
[1756787992368,1.13613582,110300.0,110290.0,0.02313]
[1756787992566,1.47613582,110300.0,110290.0,0.02313]
[1756787993963,0.07186,110290.0,110280.0,0.44534]
[1756787994163,0.30635194,110290.0,110280.0,0.44534]
[1756787995268,0.65735194,110290.0,110280.0,0.44534]
[1756787996175,0.89184388,110290.0,110280.0,0.40852]
[1756787996760,0.89284388,110290.0,110280.0,0.40852]
[1756787996966,0.89284388,110290.0,110280.0,0.44534]
[1756787997672,0.28388194,110290.0,110280.0,0.67983194]
[1756787998277,0.002,110290.0,110280.0,1.16432388]
[1756787999278,0.002,110290.0,110280.0,0.91432388]
[1756787999675,0.001,110290.0,110280.0,0.91432388]
[1756787999980,0.001,110290.0,110280.0,1.00500048]
[1756788000178,0.001,110290.0,110280.0,1.16432388]
[1756788000582,0.001,110290.0,110280.0,1.25500048]
[1756788000776,0.23449194,110300.0,110290.0,0.08454]
[1756788000975,0.23449194,110300.0,110290.0,1.50939194]
[1756788001685,0.27704151,110310.0,110290.0,1.50939194]
[1756788001876,0.32443151,110310.0,110300.0,0.09822]
[1756788002473,0.32443151,110310.0,110300.0,0.08454]
[1756788002680,0.57443151,110310.0,110300.0,0.08454]
[1756788003483,0.59443151,110310.0,110300.0,0.08454]
[1756788003982,0.57743151,110310.0,110300.0,0.08454]
[1756788004684,0.34493957,110310.0,110300.0,0.09822]
[1756788004882,0.32943151,110310.0,110300.0,0.33271194]
[1756788005079,0.32943151,110310.0,110300.0,0.69351194]
[1756788005382,0.07046957,110310.0,110300.0,0.92800388]
[1756788005582,0.07046957,110310.0,110300.0,0.69351194]
[1756788006584,0.02307957,110310.0,110300.0,0.92800388]
[1756788007280,0.02007957,110310.0,110300.0,1.03800388]
[1756788009073,0.002,110310.0,110300.0,1.67840608]
[1756788009274,0.30596194,110350.0,110340.0,0.03705]
[1756788009578,0.30596194,110350.0,110340.0,0.08449]
[1756788010578,0.31296194,110350.0,110340.0,0.31898194]
[1756788011285,0.38890756,110350.0,110340.0,0.67978194]
[1756788011481,0.29249194,110350.0,110340.0,0.67978194]
[1756788012183,0.058,110350.0,110340.0,0.67978194]
[1756788012487,0.29249194,110350.0,110340.0,0.67978194]
[1756788013683,0.29249194,110350.0,110340.0,0.44529]
[1756788013878,0.31696194,110350.0,110340.0,0.67978194]
[1756788014179,0.31696194,110350.0,110340.0,0.44529]
[1756788014386,0.31696194,110350.0,110340.0,0.67978194]
[1756788014879,0.29249194,110350.0,110340.0,0.67978194]
[1756788015574,0.31696194,110350.0,110340.0,0.67978194]
[1756788015875,0.31696194,110350.0,110340.0,0.44529]
[1756788016078,0.31696194,110350.0,110340.0,0.67978194]
[1756788020086,0.03457,110350.0,110340.0,0.67978194]
[1756788020287,0.011,110350.0,110340.0,0.67978194]
[1756788020586,0.24549194,110350.0,110340.0,0.67978194]
[1756788020786,0.011,110350.0,110340.0,0.67978194]
[1756788021292,0.011,110350.0,110340.0,0.91427388]
[1756788023182,0.011,110350.0,110340.0,0.93432016]
[1756788023387,0.011,110350.0,110340.0,0.94328352]
[1756788025494,0.011,110350.0,110340.0,1.19328352]
[1756788026388,0.011,110350.0,110340.0,1.26638121]
[1756788026892,0.011,110350.0,110340.0,1.25741785]
[1756788028399,0.011,110350.0,110340.0,1.36741785]
[1756788029195,0.011,110350.0,110340.0,1.25741785]
[1756788035201,0.011,110350.0,110340.0,1.36741785]
[1756788036703,0.011,110350.0,110340.0,2.19649785]
[1756788036899,0.03547,110350.0,110340.0,2.19649785]
[1756788037094,0.011,110350.0,110340.0,2.19649785]
[1756788038898,0.011,110350.0,110340.0,1.72747397]
[1756788039204,0.011,110350.0,110340.0,2.08645785]
[1756788040303,0.011,110350.0,110340.0,1.61747397]
[1756788040602,0.011,110350.0,110340.0,2.08645785]
[1756788041101,0.011,110350.0,110340.0,1.25741785]
[1756788041305,0.011,110350.0,110340.0,2.08645785]
[1756788042004,0.011,110350.0,110340.0,0.78843397]
[1756788042405,0.011,110350.0,110340.0,2.08645785]
[1756788045406,0.011,110350.0,110340.0,1.85175554]
[1756788047007,0.002,110350.0,110340.0,1.85175554]
[1756788047307,0.006,110350.0,110340.0,1.85175554]
[1756788057015,0.03047,110350.0,110340.0,0.44529]
[1756788057207,0.07097,110340.0,110330.0,0.08321]
[1756788057406,1.49594377,110340.0,110320.0,0.02028274]
[1756788057607,0.91605157,110330.0,110320.0,0.02028274]
[1756788057812,1.29432416,110330.0,110320.0,0.02028274]
[1756788058507,1.29432416,110330.0,110320.0,0.04411274]
[1756788059307,1.04432416,110330.0,110320.0,0.04411274]
[1756788060016,1.04532416,110330.0,110320.0,0.04411274]
[1756788060315,1.04532416,110330.0,110320.0,0.06835274]
[1756788060516,1.04932416,110330.0,110320.0,0.06835274]
[1756788061522,1.05232416,110330.0,110320.0,0.06835274]
[1756788062023,1.05232416,110330.0,110320.0,0.04411274]
[1756788064320,1.03224353,110330.0,110320.0,0.04411274]
[1756788064816,1.03224353,110330.0,110320.0,0.02028274]
[1756788066123,1.03224353,110330.0,110320.0,0.04411274]
[1756788066319,1.03224353,110330.0,110320.0,0.02028274]
[1756788067421,1.03224353,110330.0,110320.0,0.04513274]
[1756788068221,1.03224353,110330.0,110320.0,0.06802274]
[1756788069327,0.45796196,110330.0,110320.0,0.10470274]
[1756788069528,0.69224353,110330.0,110320.0,0.10470274]
[1756788069731,1.06224353,110330.0,110320.0,0.10470274]
[1756788071222,1.05924353,110330.0,110320.0,0.10470274]
[1756788071427,1.06124353,110330.0,110320.0,0.10470274]
[1756788072020,1.05424353,110330.0,110320.0,0.10470274]
[1756788072228,1.06024353,110330.0,110320.0,0.10470274]
[1756788076840,1.00024353,110330.0,110320.0,0.10470274]
[1756788077946,0.45596196,110330.0,110320.0,0.10470274]
[1756788078141,0.69024353,110330.0,110320.0,0.10470274]
[1756788078442,1.04024353,110330.0,110320.0,0.10470274]
[1756788079645,0.45596196,110330.0,110320.0,0.10470274]
[1756788079846,1.01024353,110330.0,110320.0,0.10470274]
[1756788081241,0.69024353,110330.0,110320.0,0.10470274]
[1756788081747,1.02024353,110330.0,110320.0,0.10470274]
[1756788081947,0.71024353,110330.0,110320.0,0.10470274]
[1756788083743,0.71024353,110330.0,110320.0,0.06802274]
[1756788083936,0.71024353,110330.0,110320.0,0.10470274]
[1756788085551,0.69024353,110330.0,110320.0,0.10470274]
[1756788085751,1.07024353,110330.0,110320.0,0.10470274]
[1756788086051,1.02024353,110330.0,110320.0,0.10470274]
[1756788086251,1.04029824,110330.0,110320.0,0.10470274]
[1756788086549,1.04029824,110330.0,110320.0,0.02028274]
[1756788087545,1.04029824,110330.0,110320.0,0.04513274]
[1756788087946,1.04029824,110330.0,110320.0,0.06802274]
[1756788088339,1.04029824,110330.0,110320.0,0.10470274]
[1756788091555,1.04029824,110330.0,110320.0,0.06802274]
[1756788093352,1.04029824,110330.0,110320.0,0.10470274]
[1756788094252,0.71029824,110330.0,110320.0,0.10470274]
[1756788094453,1.04029824,110330.0,110320.0,0.10470274]
[1756788094647,1.03029824,110330.0,110320.0,0.10470274]
[1756788095054,0.71029824,110330.0,110320.0,0.10470274]
[1756788095659,1.07029824,110330.0,110320.0,0.06802274]
[1756788095957,1.07029824,110330.0,110320.0,0.10525274]
[1756788096550,1.07029824,110330.0,110320.0,0.06802274]
[1756788097758,1.08029824,110330.0,110320.0,0.10525274]
[1756788097956,1.04029824,110330.0,110320.0,0.10525274]
[1756788098456,1.04037882,110330.0,110320.0,0.10525274]
[1756788098958,0.73037882,110330.0,110320.0,0.10525274]
[1756788099157,1.07037882,110330.0,110320.0,0.10525274]
[1756788099655,1.09037882,110330.0,110320.0,0.10525274]
[1756788100459,0.47609725,110330.0,110320.0,0.10525274]
[1756788100662,1.06037882,110330.0,110320.0,0.10525274]
[1756788101755,0.11529725,110330.0,110320.0,0.10525274]
[1756788101957,0.04702196,110330.0,110320.0,1.84445639]
[1756788102157,0.04702196,110330.0,110320.0,1.77933431]
[1756788102457,0.02419196,110330.0,110320.0,1.77933431]
[1756788102958,0.02219196,110330.0,110320.0,1.77933431]
[1756788103360,0.02219196,110330.0,110320.0,1.84445639]
[1756788103550,0.01819196,110330.0,110320.0,1.93510009]
[1756788103754,0.01919196,110330.0,110320.0,1.93510009]
[1756788104356,0.001,110330.0,110320.0,1.93510009]
[1756788107567,0.001,110330.0,110320.0,2.40364319]
[1756788109167,0.001,110330.0,110320.0,2.33852111]
[1756788110268,0.001,110330.0,110320.0,2.40356326]
[1756788111168,0.02547,110330.0,110320.0,1.35993489]
[1756788111375,0.02547,110330.0,110320.0,1.82848467]
[1756788112077,0.001,110330.0,110320.0,1.82848467]
[1756788112369,0.001,110330.0,110320.0,1.8284655]
[1756788112669,0.001,110330.0,110320.0,1.9191094]
[1756788113059,0.001,110330.0,110320.0,1.02524642]
[1756788113261,0.001,110330.0,110320.0,1.76340252]
[1756788113462,0.001,110330.0,110320.0,0.93460252]
[1756788113662,0.001,110330.0,110320.0,1.76336252]
[1756788119573,0.001,110330.0,110320.0,1.76328252]
[1756788119876,0.001,110330.0,110320.0,0.93460252]
[1756788120170,0.001,110330.0,110320.0,1.76328252]
[1756788120974,0.001,110330.0,110320.0,1.8283055]
[1756788122064,0.55967489,110330.0,110320.0,0.53107572]
[1756788122269,0.55967489,110330.0,110320.0,1.59399061]
[1756788123671,0.3254,110330.0,110320.0,1.59399061]
[1756788127079,0.251,110330.0,110320.0,1.8282655]
[1756788127272,0.251,110330.0,110320.0,0.9996255]
[1756788127778,0.251,110330.0,110320.0,1.8282255]
[1756788129871,0.27547,110330.0,110320.0,1.8282255]
[1756788130174,0.3234,110330.0,110320.0,1.8282255]
[1756788130570,0.29893,110330.0,110320.0,1.8282255]
[1756788131272,0.29893,110330.0,110320.0,1.82841213]
[1756788131477,0.27505,110330.0,110320.0,1.82841213]
[1756788132071,0.27505,110330.0,110320.0,1.76320252]
[1756788132279,0.251,110330.0,110320.0,1.76320252]
[1756788134092,0.001,110330.0,110320.0,2.08812121]
[1756788134279,0.001,110330.0,110320.0,1.76320252]
[1756788134478,0.04893,110330.0,110320.0,1.76316252]
[1756788134686,0.0734,110330.0,110320.0,1.76316252]
[1756788135084,0.0734,110330.0,110320.0,0.93460252]
[1756788135281,1.85354978,110330.0,110320.0,0.08550946]
[1756788135580,1.89211057,110330.0,110320.0,0.06920664]
[1756788136284,1.87221435,110330.0,110320.0,0.06920664]
[1756788137178,1.87221435,110330.0,110320.0,0.02028274]
[1756788140284,2.70081435,110330.0,110320.0,0.02028274]
[1756788140690,2.70081435,110330.0,110300.0,1.2161339]
[1756788140890,0.23845489,110310.0,110300.0,1.2161339]
[1756788141385,0.25183489,110310.0,110300.0,0.4923739]
[1756788141592,0.25183489,110310.0,110300.0,0.5067939]
[1756788142482,0.25183489,110310.0,110300.0,0.5087939]
[1756788142682,0.26099999,110310.0,110300.0,0.5107939]